{"text_format":"1","workbook":"xlsx","n_sheets":2,"sheets":["Formulario","Hoja2"],"not_rendered":{"charts":0,"images":29,"macros":1,"external_links":1,"defined_names":28,"comments":0,"pivot_tables":0},"unopened":[],"bounds":{"document_bytes":16777216,"sheet_cells":100000,"rows_first":2000,"rows_last":500,"rows_between":2000,"halvings":0,"cell_chars":16384,"cell_head_chars":4096},"cells_cut":0,"cells_raw":0,"read":"whole","date_system":"1900"}

{"sheet":"Formulario","index":0,"n_rows":48,"n_cols":12,"rows_kept":48,"cut":false,"hidden":false,"merged":[[41,2,41,10],[40,2,40,10],[25,3,25,10],[29,3,29,10],[35,3,35,4],[35,5,35,7],[35,8,35,9],[32,5,32,10],[32,3,32,4],[21,5,21,6],[22,5,22,6],[22,8,22,10],[38,2,38,5],[26,3,26,4],[27,3,27,4],[26,5,26,7],[27,5,27,7],[31,5,31,7],[36,3,36,4],[36,5,36,6],[36,7,36,9],[26,9,26,10],[27,9,27,10],[23,3,23,10],[3,5,3,7],[2,3,2,7],[3,2,4,2],[4,3,4,7],[9,3,9,7],[45,7,45,10],[11,4,11,7],[10,5,10,7],[12,2,15,2],[10,2,11,2],[34,3,34,10],[12,8,12,9],[14,8,14,9],[14,4,14,7],[15,3,15,4],[12,3,12,4],[12,5,12,7],[30,3,30,4],[30,5,30,7],[30,9,30,10],[31,8,31,10]]}
[""]
[null,null,"1. Datos de la persona denunciante"]
[]
[]
[]
[]
[]
[]
[null,null,"2. Datos de la persona funcionaria denunciada (complete los datos que conozca)"]
[]
[]
[]
[]
[]
[]
[]
[]
[]
[null,null,"3. Datos de los hechos denunciados",null,null,null,null,null,null,null,{"$f":"Hoja2!M2","v":"Por definir al recibir"}]
[null,null,null,null,null,null,null,null,null,null,null,""]
[]
[null,null,{"$f":"IF(K19=\"Ausencias\",\"Documentos probatorios obligatorios:\",IF(K19=\"Violencia física\",\"Documentos probatorios obligatorios:\",IF(K19=\"Violencia psicológica\",\"Documentos probatorios obligatorios:\",IF(K19=\"Violencia sexual\",\"Documentos probatorios obligatorios:\",\"\"))))","v":""},{"$f":"IF(K19=\"Ausencias\",\"Horario asignado certificado:\",IF(K19=\"Violencia física\",\"Anexos del Protocolo aplicados:\",IF(K19=\"Violencia psicológica\",\"Anexos del Protocolo aplicados:\",IF(K19=\"Violencia sexual\",\"Anexos del Protocolo aplicados:\",\"\"))))","v":""},null,{"$f":"IF(K19=\"Ausencias\",\"Registro de asistencia original o copia certificada:\",IF(K19=\"Violencia física\",\"Si es requerida, denuncia al OIJ / Fiscalía:\",IF(K19=\"Violencia psicológica\",\"Si es requerida, denuncia al OIJ / Fiscalía:\",IF(K19=\"Violencia sexual\",\"Si es requerida, denuncia al OIJ / Fiscalía:\",\"\"))))","v":""},null,null,{"$f":"IF(AND($K$19=\"Por definir al recibir\",$L$20=\"\"),\"Recuerde especificar la temática de su denuncia\",\"\")","v":"Recuerde especificar la temática de su denuncia"}]
[null,null,{"$f":"IF(K19=\"Ausencias\",\"\",\"Fecha:\")","v":"Fecha:"},null,{"$f":"IF(K19=\"Ausencias\",\"\",\"Hora:\")","v":"Hora:"},null,null,{"$f":"IF(K19=\"Ausencias\",\"\",\"Lugar:\")","v":"Lugar:"}]
[null,null,{"$f":"IF(K19=\"Ausencias\",\"Fechas de ausencias, tardías u omisiones a denunciar:\",\"Narración clara y concisa (cómo, cuándo y dónde) ocurrieron los hechos:\")","v":"Narración clara y concisa (cómo, cuándo y dónde) ocurrieron los hechos:"}]
[]
[null,null,{"$f":"IF($K$19=\"Ausencias\",\"\",\"Prueba documental ofrecida y certificada:\")","v":"Prueba documental ofrecida y certificada:"},{"$f":"IF($K$19=\"Ausencias\",\"\",\"Documental\")","v":"Documental"}]
[null,null,null,{"$f":"IF($K$19=\"Ausencias\",\"\",\"Nombre del documento\")","v":"Nombre del documento"},null,null,null,null,{"$f":"IF($K$19=\"Ausencias\",\"\",\"Fecha del doc.\")","v":"Fecha del doc."}]
[null,null,null,{"$f":"IF($K$19=\"Ausencias\",\"\",\"Fuente del documento\")","v":"Fuente del documento"},null,null,null,null,{"$f":"IF($K$19=\"Ausencias\",\"\",\"Asunto del doc.\")","v":"Asunto del doc."}]
[]
[null,null,{"$f":"IF($K$19=\"Ausencias\",\"\",\"Prueba testimonial ofrecida:\")","v":"Prueba testimonial ofrecida:"},{"$f":"IF($K$19=\"Ausencias\",\"\",\"Testimonial\")","v":"Testimonial"}]
[null,null,null,{"$f":"IF($K$19=\"Ausencias\",\"\",\"Nombre de la persona testigo\")","v":"Nombre de la persona testigo"},null,null,null,null,{"$f":"IF($K$19=\"Ausencias\",\"\",\"Número de identificación\")","v":"Número de identificación"}]
[null,null,null,{"$f":"IF($K$19=\"Ausencias\",\"\",\"Teléfono\")","v":"Teléfono"},null,{"$f":"IF($K$19=\"Ausencias\",\"\",\"Correo electrónico\")","v":"Correo electrónico"}]
[null,null,null,{"$f":"IF($K$19=\"Ausencias\",\"\",\"Hecho a testificar\")","v":"Hecho a testificar"}]
[]
[null,null,{"$f":"IF($K$19=\"Ausencias\",\"\",\"Prueba digital ofrecida y certificada:\")","v":"Prueba digital ofrecida y certificada:"},{"$f":"IF($K$19=\"Ausencias\",\"\",\"Digital\")","v":"Digital"}]
[null,null,null,{"$f":"IF($K$19=\"Ausencias\",\"\",\"Fuente del material aportado\")","v":"Fuente del material aportado"},null,null,null,null,{"$f":"IF($K$19=\"Ausencias\",\"\",\"Fecha del evento referido en el material aportado\")","v":"Fecha del evento referido en el material aportado"}]
[null,null,null,{"$f":"IF($K$19=\"Ausencias\",\"\",\"Hora del evento referido en el material aportado\")","v":"Hora del evento referido en el material aportado"},null,null,null,{"$f":"IF($K$19=\"Ausencias\",\"\",\"Duración del material aportado\")","v":"Duración del material aportado"}]
[]
[null,null,{"$f":"IF($K$19=\"Ausencias\",\"No toque este botón en caso de denuncias sobre Ausencias, porque no requiere aportar pruebas adicionales a las ya requeridas (Horario asignado y Registro de asistencia)\",\"\")","v":""}]
[]
[null,null,"¡RECUERDE! Cada documento / material audiovisual aportado debe venir certificado por el superior inmediato, agregando un folio con el siguiente párrafo:"]
[null,null,"\"Yo [nombre de la persona superior inmediata], en calidad de [nombre del cargo] de [nombre del lugar de trabajo] certifico que, con vista en el [documento / contenido audiovisual] original de [nombre del documento o material audiovisual], disponible en [fuente en el la cual se encuentra el original, bajo potestad del propio superior inmediato], esta es una copia fiel y exacta a dicho original. Es todo. Se extiende la presente certificación el día [fecha].\""]
[null,"______________________________________________"]
[]
[null,"Firma de la persona denunciante"]
[null,null,null,null,null,null,"Fecha de firma:",{"$f":"TODAY()","v":"2024-11-04"}]
[]
[null,null,{"$f":"IF(Formulario!$A$1=\"\",\"¡ATENCIÓN! En la Sección 1 Datos de la persona denunciante, debe escribir obligatoriamente un correo electrónico válido para notificaciones\",\"\")","v":"¡ATENCIÓN! En la Sección 1 Datos de la persona denunciante, debe escribir obligatoriamente un correo electrónico válido para notificaciones"}]

{"sheet":"Hoja2","index":1,"n_rows":367,"n_cols":13,"rows_kept":367,"cut":false,"hidden":true,"merged":[]}
["Cartago",null,"Provincia","Cantón","Distrito","dependencia","Clases de puestos","Tipos de denuncia","DRE","Temática"]
["Abangares","San José","Alajuela","Abangares","27 De Abril","Archivo Central","Administrativo Docente (TII) ","Ausencias","Aguirre","Faltas sobre Ausencias (para funcionarios de planta de oficinas regionales y oficinas centrales)","Ausencias","",{"$f":"IFERROR(VLOOKUP(L2,J2:K40,2,FALSE),\"Por definir al recibir\")","v":"Por definir al recibir"}]
["Alajuela","Escazú","Cartago","Acosta","Acapulco","Auditoría Interna","Técnico Docente (TII) ","Otras faltas de Mera Constatación","Alajuela","     · Abandono de trabajo","Ausencias"]
["Cartago","Desamparados","Guanacaste","Aguirre","Agua Buena","Centro Nacional de Recursos Para La Educación Inclusiva","Docente (TII) ","Disciplinaria","Cañas","     · Ausencias injustificadas","Ausencias"]
["Limón",null,"Heredia","Alajuela","Aguacaliente  O  San Fco.","CONESUP","Administrativo (TI)","Violencia (física, psicológica o sexual)","Cartago","     · Llegadas tardías","Ausencias"]
["Heredia",null,"Limón","Alajuelita","Aguas Claras","Consejo Superior de Educación",null,null,"Coto"]
["Puntarenas",null,"Puntarenas","Alfaro Ruiz","Aguas Zarcas","Contraloría de derechos Estudiantiles",null,null,"Desamparados","Otras faltas de Mera Constatación (para funcionarios de planta de oficinas regionales y oficinas centrales)","Otras faltas de Mera Constatación"]
["Guanacaste",null,"San José","Alvarado","Alajuela","Despacho Ministerial",null,null,"Grande de Térraba","     · Falsificación de documentos","Otras faltas de Mera Constatación"]
[null,null,null,"Aserrí","Alajuelita","Despacho Viceministro Académico",null,null,"Guápiles","     · Uso de documentos falsos","Otras faltas de Mera Constatación"]
["Estudiante",null,null,"Atenas","Alegría","Despacho Viceministro Administrativo",null,null,"Heredia","     · Sentencias penales en firme","Otras faltas de Mera Constatación"]
[null,null,null,"Bagaces","Alfaro","Despacho Viceministro Planificación Y Coordinación Regional",null,null,"Liberia","     · Calificaciones de desempeño deficientes","Otras faltas de Mera Constatación"]
[null,null,null,"Barva","Angeles","Dirección de Asuntos Internacionales Y Cooperación",null,null,"Limón","     · Uso inadecuado de licencias y permisos registrados mediante acción de personal. ","Otras faltas de Mera Constatación"]
[null,null,null,"Belen","Anselmo Llorente","Dirección de Asuntos Jurídicos",null,null,"Los Santos"]
[null,null,null,"Buenos Aires","Arenal","Dirección de Contraloría de Servicios",null,null,"Nicoya","Faltas Disciplinarias (para funcionarios de planta de oficinas regionales y oficinas centrales)","Disciplinaria"]
[null,null,null,"Cañas","Aserrí","Dirección de desarrollo Curricular",null,null,"Norte-Norte","     · Acoso laboral","Disciplinaria"]
[null,null,null,"Carrillo","Asunción","Dirección de Educación Privada",null,null,"Occidente","     · Incumplimiento a deberes del cargo","Disciplinaria"]
[null,null,null,"Cartago","Atenas","Dirección de Educación Técnica Y Capacidades Emprendedoras",null,null,"Peninsular","     · Desacato manifiesto y reiterado a las instrucciones","Disciplinaria"]
[null,null,null,"Corredores","Bagaces","Dirección de Gestión Y desarrollo Regional",null,null,"Pérez Zeledón","     · Irregularidades en la gestión de los Departamentos de Juntas de DRE","Disciplinaria"]
[null,null,null,"Coto Brus","Bahía Ballena","Dirección de Gestión Y Evaluación de La Calidad",null,null,"Puntarenas","     · Inadecuado uso de bienes institucionales","Disciplinaria"]
[null,null,null,"Curridabat","Barbacoas","Dirección de Informática de Gestión",null,null,"Puriscal","     · Uso y tenencias de sustancias psicotrópicas","Disciplinaria"]
[null,null,null,"Desamparados","Barranca","Dirección de Infraestructura Educativa",null,null,"San Carlos","     · Estado etílico","Disciplinaria"]
[null,null,null,"Dota","Barrantes","Dirección de Planificación Institucional",null,null,"San José Central","     · Faltas identificadas por PANEA","Disciplinaria"]
[null,null,null,"El Guarco","Barú","Dirección de Prensa Y Relaciones Públicas",null,null,"San José Norte","     · Tráfico de influencias","Disciplinaria"]
[null,null,null,"Escazú","Barva","Dirección de Programas de Equidad",null,null,"San José Oeste","     · Irregularidades en los nombramientos","Disciplinaria"]
[null,null,null,"Esparza","Batán","Dirección de Proveeduría Institucional",null,null,"Santa Cruz"]
[null,null,null,"Flores","Bebedero","Dirección de Recursos Humanos",null,null,"Sarapiquí","Faltas sobre violencia física y psicológica (para funcionarios de planta de oficinas regionales y oficinas centrales)","Violencia"]
[null,null,null,"Garabito","Bejuco","Dirección de Recursos Tecnológicos En Educación",null,null,"Sulá","     · Agresión psicológica ","Violencia psicológica"]
[null,null,null,"Goicoechea","Belén","Dirección de Servicios Generales",null,null,"Turrialba","     · Agresión física","Violencia física"]
[null,null,null,"Golfito","Belén De Nosarita","Dirección de Vida Estudiantil"]
[null,null,null,"Grecia","Bijagua","Dirección Financiera",null,null,null,"Faltas sobre violencia sexual","Violencia sexual"]
[null,null,null,"Guacimo","Biolley","Instituto de Desarrollo Profesional Uladislao Gámez Solano",null,null,null,"     · Hostigamiento sexual","Violencia sexual"]
[null,null,null,"Guatuso","Bolívar","Oficialía Mayor",null,null,null,"     · Abuso sexual","Violencia sexual"]
[null,null,null,"Heredia","Bolsón","Tribunal de La Carrera Docente",null,null,null,"     · Violación","Violencia sexual"]
[null,null,null,"Hojancha","Boruca",null,null,null,null,"     · Difusión de pornografía","Violencia sexual"]
[null,null,null,"Jimenez","Brasil",null,null,null,null,"     · Corrupción de menores","Violencia sexual"]
[null,null,null,"La Cruz","Bratsi",null,null,null,null,"     · Relaciones impropias","Violencia sexual"]
[null,null,null,"La Union","Brisas",null,null,null,null,"     · Trato corruptor","Violencia sexual"]
[null,null,null,"Leon Cortes","Buenavista",null,null,null,null,"     · Discriminación por orientación sexual","Violencia sexual"]
[null,null,null,"Liberia","Buenos Aires"]
[null,null,null,"Limón","Cabo Velas",null,null,null,null,"Otra temática de denuncia","Por definir al recibir"]
[null,null,null,"Los Chiles","Cachí"]
[null,null,null,"Matina","Cahuita"]
[null,null,null,"Montes De Oca","Cairo"]
[null,null,null,"Montes De Oro","Cajón"]
[null,null,null,"Mora","Calle Blancos"]
[null,null,null,"Moravia","Candelaria"]
[null,null,null,"Nandayure","Candelarita"]
[null,null,null,"Naranjo","Cangrejal"]
[null,null,null,"Nicoya","Canoas"]
[null,null,null,"Oreamuno","Cañas"]
[null,null,null,"Orotina","Cañas Dulces"]
[null,null,null,"Osa","Caño Negro"]
[null,null,null,"Palmares","Capellades"]
[null,null,null,"Paraiso","Cariari"]
[null,null,null,"Parrita","Carmen"]
[null,null,null,"Perez Zeledon","Carmona"]
[null,null,null,"Poas","Carrandí"]
[null,null,null,"Pococi","Carrillos"]
[null,null,null,"Puntarenas","Carrizal"]
[null,null,null,"Puriscal","Cartagena"]
[null,null,null,"San Carlos","Cascajal"]
[null,null,null,"San Isidro","Catedral"]
[null,null,null,"San José","Ceiba"]
[null,null,null,"San Mateo","Cervantes"]
[null,null,null,"San Pablo","Chacarita"]
[null,null,null,"San Rafael","Chánguena"]
[null,null,null,"San Ramon","Chira"]
[null,null,null,"Santa Ana","Chires"]
[null,null,null,"Santa Barbara","Chomes"]
[null,null,null,"Santa Cruz","Cinco Esquinas"]
[null,null,null,"Santo Domingo","Cipreses"]
[null,null,null,"Sarapiqui","Cirrí Sur"]
[null,null,null,"Siquirres","Cóbano"]
[null,null,null,"Talamanca","Colima"]
[null,null,null,"Tarrazu","Colinas"]
[null,null,null,"Tibas","Colón"]
[null,null,null,"Tilaran","Colorado"]
[null,null,null,"Turrialba","Concepción"]
[null,null,null,"Turrubares","Copey"]
[null,null,null,"Upala","Corralillo"]
[null,null,null,"Valverde Vega","Corredor"]
[null,null,null,"Vasquez De Coronado","Cot"]
[null,null,null,null,"Cote"]
[null,null,null,null,"Coyolar"]
[null,null,null,null,"Cuajiniquil"]
[null,null,null,null,"Cureña"]
[null,null,null,null,"Curridabat"]
[null,null,null,null,"Curubandé"]
[null,null,null,null,"Cutris"]
[null,null,null,null,"Damas"]
[null,null,null,null,"Daniel Flores"]
[null,null,null,null,"Delicias"]
[null,null,null,null,"Desamparaditos"]
[null,null,null,null,"Desamparados"]
[null,null,null,null,"Desmonte"]
[null,null,null,null,"Diriá"]
[null,null,null,null,"Dos Ríos"]
[null,null,null,null,"Duacarí"]
[null,null,null,null,"Dulce Nombre"]
[null,null,null,null,"Dulce Nombre De Jesús"]
[null,null,null,null,"El Amparo"]
[null,null,null,null,"El Carmen"]
[null,null,null,null,"El Tejar"]
[null,null,null,null,"Escazú"]
[null,null,null,null,"Espíritu Santo"]
[null,null,null,null,"Esquipulas"]
[null,null,null,null,"Filadelfia"]
[null,null,null,null,"Florencia"]
[null,null,null,null,"Florida"]
[null,null,null,null,"Fortuna"]
[null,null,null,null,"Frailes"]
[null,null,null,null,"Garita"]
[null,null,null,null,"General"]
[null,null,null,null,"Germania"]
[null,null,null,null,"Golfito"]
[null,null,null,null,"Granadilla"]
[null,null,null,null,"Granja"]
[null,null,null,null,"Gravilias"]
[null,null,null,null,"Grecia"]
[null,null,null,null,"Grifo Alto"]
[null,null,null,null,"Guácima"]
[null,null,null,null,"Guacimal"]
[null,null,null,null,"Guácimo"]
[null,null,null,null,"Guadalupe"]
[null,null,null,null,"Guadalupe O Arenilla"]
[null,null,null,null,"Guaitíl"]
[null,null,null,null,"Guápiles"]
[null,null,null,null,"Guayabo"]
[null,null,null,null,"Guaycará"]
[null,null,null,null,"Hacienda Vieja"]
[null,null,null,null,"Hatillo"]
[null,null,null,null,"Heredia"]
[null,null,null,null,"Hojancha"]
[null,null,null,null,"Horquetas"]
[null,null,null,null,"Hospital"]
[null,null,null,null,"Huacas"]
[null,null,null,null,"Ipís"]
[null,null,null,null,"Jacó"]
[null,null,null,null,"Jardín"]
[null,null,null,null,"Jesús"]
[null,null,null,null,"Jesús María"]
[null,null,null,null,"Jiménez"]
[null,null,null,null,"Juan Viñas"]
[null,null,null,null,"Juntas"]
[null,null,null,null,"La Cruz"]
[null,null,null,null,"La Cuesta"]
[null,null,null,null,"La Garita"]
[null,null,null,null,"La Suiza"]
[null,null,null,null,"La Vírgen"]
[null,null,null,null,"Laguna"]
[null,null,null,null,"Laurel"]
[null,null,null,null,"Legua"]
[null,null,null,null,"León XIII"]
[null,null,null,null,"Lepanto"]
[null,null,null,null,"Líbano"]
[null,null,null,null,"Liberia"]
[null,null,null,null,"Limón"]
[null,null,null,null,"Limóncito"]
[null,null,null,null,"Llano Bonito"]
[null,null,null,null,"Llano Grande"]
[null,null,null,null,"Llanuras Del Gaspar"]
[null,null,null,null,"Llorente"]
[null,null,null,null,"Los Chiles"]
[null,null,null,null,"Macacona"]
[null,null,null,null,"Mansión"]
[null,null,null,null,"Manzanillo"]
[null,null,null,null,"Mastate"]
[null,null,null,null,"Mata De Plátano"]
[null,null,null,null,"Mata Redonda"]
[null,null,null,null,"Matama"]
[null,null,null,null,"Matina"]
[null,null,null,null,"Mayorga"]
[null,null,null,null,"Merced"]
[null,null,null,null,"Mercedes"]
[null,null,null,null,"Mercedes Sur"]
[null,null,null,null,"Miramar"]
[null,null,null,null,"Mogote"]
[null,null,null,null,"Monte Romo"]
[null,null,null,null,"Monterrey"]
[null,null,null,null,"Monteverde"]
[null,null,null,null,"Nacascolo"]
[null,null,null,null,"Naranjito"]
[null,null,null,null,"Naranjo"]
[null,null,null,null,"Nicoya"]
[null,null,null,null,"Nosara"]
[null,null,null,null,"Occidental"]
[null,null,null,null,"Oriental"]
[null,null,null,null,"Orosi"]
[null,null,null,null,"Orotina"]
[null,null,null,null,"Pacayas"]
[null,null,null,null,"Pacuarito"]
[null,null,null,null,"Palmar"]
[null,null,null,null,"Palmares"]
[null,null,null,null,"Palmera"]
[null,null,null,null,"Palmichal"]
[null,null,null,null,"Palmira"]
[null,null,null,null,"Paquera"]
[null,null,null,null,"Pará"]
[null,null,null,null,"Paracito"]
[null,null,null,null,"Paraíso"]
[null,null,null,null,"Páramo"]
[null,null,null,null,"Parrita"]
[null,null,null,null,"Patalillo"]
[null,null,null,null,"Patarrá"]
[null,null,null,null,"Patio De Agua"]
[null,null,null,null,"Pavas"]
[null,null,null,null,"Pavón"]
[null,null,null,null,"Pavones"]
[null,null,null,null,"Pejibaye"]
[null,null,null,null,"Peñas Blancas"]
[null,null,null,null,"Peralta"]
[null,null,null,null,"Picagres"]
[null,null,null,null,"Piedades"]
[null,null,null,null,"Piedades Norte"]
[null,null,null,null,"Piedades Sur"]
[null,null,null,null,"Piedras Blancas"]
[null,null,null,null,"Piedras Negras"]
[null,null,null,null,"Pilas"]
[null,null,null,null,"Pitahaya"]
[null,null,null,null,"Pital"]
[null,null,null,null,"Pittier"]
[null,null,null,null,"Platanares"]
[null,null,null,null,"Pocora"]
[null,null,null,null,"Pocosol"]
[null,null,null,null,"Porozal"]
[null,null,null,null,"Porvenir"]
[null,null,null,null,"Potrero Cerrado"]
[null,null,null,null,"Potrero Grande"]
[null,null,null,null,"Pozos"]
[null,null,null,null,"Puente De Piedra"]
[null,null,null,null,"Puerto Carrillo"]
[null,null,null,null,"Puerto Cortés"]
[null,null,null,null,"Puerto Jiménez"]
[null,null,null,null,"Puerto Viejo"]
[null,null,null,null,"Puntarenas"]
[null,null,null,null,"Purabá"]
[null,null,null,null,"Purral"]
[null,null,null,null,"Quebrada Grande"]
[null,null,null,null,"Quebrada Honda"]
[null,null,null,null,"Quebradilla"]
[null,null,null,null,"Quepos"]
[null,null,null,null,"Quesada"]
[null,null,null,null,"Rancho Redondo"]
[null,null,null,null,"Río Azul"]
[null,null,null,null,"Río Blanco"]
[null,null,null,null,"Río Cuarto"]
[null,null,null,null,"Río Jiménez"]
[null,null,null,null,"Río Naranjo"]
[null,null,null,null,"Río Nuevo"]
[null,null,null,null,"Río Segundo"]
[null,null,null,null,"Rita"]
[null,null,null,null,"Rivas"]
[null,null,null,null,"Rivera"]
[null,null,null,null,"Rodríguez"]
[null,null,null,null,"Rosario"]
[null,null,null,null,"Roxana"]
[null,null,null,null,"Sabalito"]
[null,null,null,null,"Sabana Redonda"]
[null,null,null,null,"Sabanilla"]
[null,null,null,null,"Sabanillas"]
[null,null,null,null,"Salitral"]
[null,null,null,null,"Salitrillos"]
[null,null,null,null,"Sámara"]
[null,null,null,null,"San Andrés"]
[null,null,null,null,"San Antonio"]
[null,null,null,null,"San Carlos"]
[null,null,null,null,"San Cristóbal"]
[null,null,null,null,"San Diego"]
[null,null,null,null,"San Fco. De Dos Ríos"]
[null,null,null,null,"San Felipe"]
[null,null,null,null,"San Francisco"]
[null,null,null,null,"San Gabriel"]
[null,null,null,null,"San Ignacio"]
[null,null,null,null,"San Isidro"]
[null,null,null,null,"San Isidro De El General"]
[null,null,null,null,"San Jerónimo"]
[null,null,null,null,"San Joaquín"]
[null,null,null,null,"San Jorge"]
[null,null,null,null,"San José"]
[null,null,null,null,"San José De La Montaña"]
[null,null,null,null,"San José O Pizote"]
[null,null,null,null,"San Josecito"]
[null,null,null,null,"San Juan"]
[null,null,null,null,"San Juan De Dios"]
[null,null,null,null,"San Juan De Mata"]
[null,null,null,null,"San Juan Grande"]
[null,null,null,null,"San Lorenzo"]
[null,null,null,null,"San Luis"]
[null,null,null,null,"San Marcos"]
[null,null,null,null,"San Mateo"]
[null,null,null,null,"San Miguel"]
[null,null,null,null,"San Nicolás"]
[null,null,null,null,"San Pablo"]
[null,null,null,null,"San Pedro"]
[null,null,null,null,"San Rafael"]
[null,null,null,null,"San Rafael Abajo"]
[null,null,null,null,"San Rafael Arriba"]
[null,null,null,null,"San Ramón"]
[null,null,null,null,"San Roque"]
[null,null,null,null,"San Sebastián"]
[null,null,null,null,"San Vicente"]
[null,null,null,null,"San Vito"]
[null,null,null,null,"Sánchez"]
[null,null,null,null,"Santa Ana"]
[null,null,null,null,"Santa Bárbara"]
[null,null,null,null,"Santa Cecilia"]
[null,null,null,null,"Santa Cruz"]
[null,null,null,null,"Santa Elena"]
[null,null,null,null,"Santa Eulalia"]
[null,null,null,null,"Santa Lucía"]
[null,null,null,null,"Santa María"]
[null,null,null,null,"Santa Rita"]
[null,null,null,null,"Santa Rosa"]
[null,null,null,null,"Santa Teresita"]
[null,null,null,null,"Santiago"]
[null,null,null,null,"Santo Domingo"]
[null,null,null,null,"Santo Tomás"]
[null,null,null,null,"Sarapiquí"]
[null,null,null,null,"Sarchí Norte"]
[null,null,null,null,"Sarchí Sur"]
[null,null,null,null,"Sardinal"]
[null,null,null,null,"Savegre"]
[null,null,null,null,"Sierpe"]
[null,null,null,null,"Sierra"]
[null,null,null,null,"Siquirres"]
[null,null,null,null,"Sixaola"]
[null,null,null,null,"Tabarcia"]
[null,null,null,null,"Tacares"]
[null,null,null,null,"Tamarindo"]
[null,null,null,null,"Tambor"]
[null,null,null,null,"Tapezco"]
[null,null,null,null,"Tarbaca"]
[null,null,null,null,"Tárcoles"]
[null,null,null,null,"Tayutic"]
[null,null,null,null,"Tempate"]
[null,null,null,null,"Tierra Blanca"]
[null,null,null,null,"Tierras Morenas"]
[null,null,null,null,"Tigra"]
[null,null,null,null,"Tilarán"]
[null,null,null,null,"Tirrases"]
[null,null,null,null,"Tobosi"]
[null,null,null,null,"Toro Amarillo"]
[null,null,null,null,"Tres Equis"]
[null,null,null,null,"Tres Ríos"]
[null,null,null,null,"Trinidad"]
[null,null,null,null,"Tronadora"]
[null,null,null,null,"Tucurrique"]
[null,null,null,null,"Tuis"]
[null,null,null,null,"Tures"]
[null,null,null,null,"Turrialba"]
[null,null,null,null,"Turrúcares"]
[null,null,null,null,"Ulloa"]
[null,null,null,null,"Unión"]
[null,null,null,null,"Upala"]
[null,null,null,null,"Uruca"]
[null,null,null,null,"Valle La Estrella"]
[null,null,null,null,"Vara Blanca"]
[null,null,null,null,"Venado"]
[null,null,null,null,"Venecia"]
[null,null,null,null,"Volcán"]
[null,null,null,null,"Volio"]
[null,null,null,null,"Vuelta De Jorco"]
[null,null,null,null,"Yolillal"]
[null,null,null,null,"Zapotal"]
[null,null,null,null,"Zapote"]
[null,null,null,null,"Zaragoza"]
[null,null,null,null,"Zarcero"]